Cogmind - Beta 14 @@@ ROGUE MODE // 2025.01.02 @ 13:18:15 // Winter2019/RPGLIKE Player: MoYuYu Result: Self-destructed Performance ------------- Evolutions (1) 500 Regions Visited (2) 400 Robots Destroyed (14) 70 Value Destroyed (381) 381 Prototype IDs (2) 40 Alien Tech Used (0) 0 Bonus (0) 0 TOTAL SCORE: 1391 Bonus ------- None Cogmind --------- Core Integrity 443/1000 Matter 267/300 Energy 400/400 System Corruption 0% Temperature Cool (0) Movement Walking (120) Location -9/Materials Parts ------- > --- POWER (2) -------- Ion Engine Ion Engine > --- PROPULSION (2) --- Aluminum Leg Aluminum Leg > --- UTILITY (2) ------ Terrain Scanner Targeting Computer > --- WEAPON (2) ------- Assault Rifle Light Cannon > --- INVENTORY (1) ---- Medium Laser Peak State ------------ > --- POWER ------------ Ion Engine Ion Engine > --- PROPULSION ------- Aluminum Leg Aluminum Leg > --- UTILITY ---------- Terrain Scanner Targeting Computer > --- WEAPON ----------- Assault Rifle Light Cannon > --- INVENTORY -------- Medium Laser [Rating: 8] Favorites ----------- Power Ion Engine Engine Ion Engine Propulsion Aluminum Leg Leg Aluminum Leg Utility Heat Sink Device Heat Sink Processor Targeting Computer Weapon Assault Rifle Energy Gun Medium Laser Ballistic Gun Assault Rifle Ballistic Cannon Light Cannon Build | -11 -10 -9 ------- Run | Yrd Mat Mat Slots Evolved 4 | 3 1 . Power 1 | 1 . . Propulsion 1 | 1 . . Utility 1 | . 1 . Weapon 1 | 1 . . Parts Attached 17 | 7 10 . Power 4 | 2 2 . Engine 4 | 2 2 . Core . | . . . Reactor . | . . . Propulsion 3 | 2 1 . Treads . | . . . Leg 3 | 2 1 . Wheel . | . . . Hover . | . . . Flight . | . . . Utility 5 | . 5 . Device 4 | . 4 . Storage . | . . . Processor 1 | . 1 . Hackware . | . . . Protection . | . . . Artifact . | . . . Weapon 5 | 3 2 . Energy Gun 1 | 1 . . Energy Cannon . | . . . Ballistic Gun 3 | 2 1 . Ballistic Cannon 1 | . 1 . Launcher . | . . . Special Weapon . | . . . Impact Weapon . | . . . Slashing Weapon . | . . . Piercing Weapon . | . . . Special Melee Weapon . | . . . Unidentified Prototypes . | . . . Parts Lost . | . . . Power . | . . . Propulsion . | . . . Utility . | . . . Weapon . | . . . Highest Loss Streak . | . . . To Critical Strikes . | . . . Average Slot Usage (%) 98 | . 98 . Engine 27 | . 27 . Leg 27 | . 27 . Device 9 | . 9 . Processor 3 | . 3 . Energy Gun 1 | . 1 . Ballistic Gun 15 | . 15 . Ballistic Cannon 10 | . 10 . Peak Build Rating 8 | 6 8 8 Average Rating 6 | 4 7 8 On Entrance 4 | . 6 8 Naked Turns . | . . . Heaviest Build 17 | 10 17 16 Greatest Support 20 | 20 20 20 Greatest Overweight (x) . | . . . Average Overweight (x) . | . . . Largest Inventory Capacity 1 | 1 1 1 Average Capacity . | . 1 1 Most Carried 1 | 1 1 1 Average Carried . | . 1 1 Final Capacity 1 | 1 1 1 Final Carried 1 | 1 1 1 Class Distribution -------------------- 87% | Mutant 12% | Skirmisher Dominant Class ---------------- Mutant | -10/Materials Mutant | -9/Materials Resources | -11 -10 -9 ----------- Run | Yrd Mat Mat Matter Collected 581 | 236 345 . Remotely . | . . . Salvage Created 304 | . 304 . Parts 23 | . 23 . Haulers Intercepted . | . . . Recyclers Shooed . | . . . Parts Field Recycled . | . . . Retrieved Matter . | . . . Parts Self-Destructed . | . . . Prevented . | . . . Kills | -11 -10 -9 ------- Run | Yrd Mat Mat Combat Hostiles Destroyed 11 | . 11 . Guns 8 | . 8 . Cannons 1 | . 1 . Classes Destroyed 4 | . 4 . Worker 1 | . 1 . Watcher 2 | . 2 . Swarmer 3 | . 3 . Grunt 8 | . 8 . Best Kill Streak 4 | . 4 . Combat Bots Only 4 | . 4 . Max Kills in Single Turn 1 | . 1 . Gunslinging . | . . . Exploded . | . . . Melee . | . . . Uniques/NPCs Destroyed . | . . . Combat | -11 -10 -9 -------- Run | Yrd Mat Mat Hostile Shots Fired 63 | . 63 . Missed 17 | . 17 . Damage Taken 690 | . 690 . Core 557 | . 557 . Absorbed by Shields . | . . . Redirected to Core 436 | . 436 . Core Remaining (%) 72 | 100 44 . Volleys Fired 47 | . 47 . Largest 2 | . 2 . Hottest 70 | . 70 . Shots Fired 89 | . 89 . Gun 67 | . 67 . Cannon 22 | . 22 . Launcher . | . . . Special . | . . . Kinetic 71 | . 71 . Thermal 18 | . 18 . Explosive . | . . . Electromagnetic . | . . . Robot Hit Streak 11 | . 11 . Robot Miss Streak 2 | . 2 . Penetration Max . | . . . Secondary Targets . | . . . Shots Hit Robots 67 | . 67 . Core Hits 20 | . 20 . Critical Kills . | . . . Critical Parts Destroyed 1 | . 1 . Critical Strikes 4 | . 4 . Burn 3 | . 3 . Destroy 1 | . 1 . Melee Attacks . | . . . Impact . | . . . Slashing . | . . . Piercing . | . . . Sneak Attacks . | . . . Combat Hostiles . | . . . Follow-up Attacks . | . . . Damage Inflicted 919 | . 919 . Guns 679 | . 679 . Cannons 227 | . 227 . Explosions . | . . . Melee . | . . . Ramming 13 | . 13 . Kinetic 717 | . 717 . Thermal 189 | . 189 . Explosive . | . . . Electromagnetic . | . . . Impact . | . . . Slashing . | . . . Piercing . | . . . Highest Corruption 1 | . 1 . Average Corruption 1 | . 1 . Corruption Purged . | . . . Corruption Blocked . | . . . Effects 7 | . 7 . Message Errors 3 | . 3 . Matter Fused 2 | . 2 . Heat Flow Errors 1 | . 1 . Data Loss (minor) 1 | . 1 . Overload Shots . | . . . Overflow Damage . | . . . Projectiles . | . . . Explosions . | . . . Melee . | . . . Knockbacks 8 | . 8 . Impact . | . . . Kinetic 8 | . 8 . Secondary . | . . . Self-Inflicted Damage . | . . . Shots . | . . . Rammed . | . . . Targets Rammed 1 | . 1 . Kicked 1 | . 1 . Crushed . | . . . Highest Temperature 347 | . 347 . Average Temperature 168 | . 168 . Received Heat Transfer 306 | . 306 . Effects 4 | . 4 . Shutdowns 1 | . 1 . Interference 2 | . 2 . Damage (minor) 1 | . 1 . Siege Activations . | . . . Robots Corrupted . | . . . Combat Hostiles . | . . . Parts Fried . | . . . Impact Corruptions . | . . . Robots Melted 2 | . 2 . Combat Hostiles 2 | . 2 . Parts Melted 1 | . 1 . Heat Transferred 777 | . 777 . Parts Sabotaged . | . . . Parts Stolen . | . . . Parts Stripped . | . . . Power Chain Reactions . | . . . Alert | -11 -10 -9 ------- Run | Yrd Mat Mat Peak Influence 236 | . 236 31 Initial 31 | . . 31 Average 56 | . 60 31 Maximum Alert Level 1 | . 1 . Low Security (%) 90 | 100 90 100 Level 1 9 | . 9 . Level 2 . | . . . Level 3 . | . . . Level 4 . | . . . Level 5 . | . . . High Security . | . . . Max Security . | . . . Squads Dispatched 4 | . 4 . Investigation 1 | . 1 . Extermination . | . . . Reinforcement 3 | . 3 . Assault . | . . . Garrison . | . . . Intercept . | . . . Searches Triggered . | . . . Construction Impeded . | . . . Haulers Reinforced . | . . . Active Scanning Responses . | . . . Cargo Convoy Interrupts . | . . . Stealth | -11 -10 -9 --------- Run | Yrd Mat Mat Distress Signals 1 | . 1 . Communications Jammed . | . . . Distress Signals . | . . . Times Spotted 21 | . 21 . Peak Tracking Total 3 | . 3 . Tactical Retreats 3 | . 3 . Traps | -11 -10 -9 ------- Run | Yrd Mat Mat Traps Triggered 5 | . 5 . Indirectly . | . . . Trap Hack Attempts . | . . . Triggered . | . . . Disarmed . | . . . Reprogrammed 3 | . 3 . Reused 1 | . 1 . Traps Extracted . | . . . Installed . | . . . Triggered 1 | . 1 . Machines | -11 -10 -9 ---------- Run | Yrd Mat Mat Machines Disabled 2 | . 2 . Max in Single Turn 1 | . 1 . Machines Repaired . | . . . Machines Dismantled . | . . . Machines Sabotaged . | . . . Overloaded Fab Kills . | . . . Hacking | -11 -10 -9 --------- Run | Yrd Mat Mat Machines Accessed 4 | . 4 . Terminals 4 | . 4 . Fabricators . | . . . Repair Stations . | . . . Recycling Units . | . . . Scanalyzers . | . . . Garrison Access . | . . . Total Hacks 10 | . 10 . Successful 5 | . 5 . Failed 5 | . 5 . Catastrophic . | . . . Database Lockouts . | . . . Manual . | . . . Terminals 10 | . 10 . Fabricators . | . . . Repair Stations . | . . . Recycling Units . | . . . Scanalyzers . | . . . Garrison Access . | . . . Terminal Hacks 5 | . 5 . Record 1 | . 1 . Robot Analysis 1 | . 1 . Prototype ID Bank 1 | . 1 . Alert Level 1 | . 1 . Reprogram Traps 1 | . 1 . Fabricator Hacks . | . . . Repair Station Hacks . | . . . Recycling Unit Hacks . | . . . Scanalyzer . | . . . Garrison Access Hacks . | . . . Unauthorized Hacks . | . . . Terminals . | . . . Fabricators . | . . . Repair Stations . | . . . Recycling Units . | . . . Scanalyzers . | . . . Garrison Access . | . . . Data Cores Recovered . | . . . Used . | . . . Hacking Detections 2 | . 2 . Full Trace Events . | . . . Feedback Events . | . . . Feedback Blocked . | . . . Robot Schematics Acquired . | . . . Robots Built . | . . . Authchips . | . . . Time . | . . . Total Robot Build Rating . | . . . Part Schematics Acquired . | . . . Parts Built . | . . . Authchips . | . . . Time . | . . . Total Part Build Rating . | . . . Parts Repaired . | . . . Time . | . . . Parts Recycled . | . . . Recycled Matter . | . . . Retrieved Matter . | . . . Retrieved Components . | . . . Parts Scanalyzed . | . . . Part Schematics Acquired . | . . . Parts Damaged . | . . . Bothacking | -11 -10 -9 ------------ Run | Yrd Mat Mat Used RIF Installer . | . . . Robots Hacked . | . . . Non-combat . | . . . Combat . | . . . Robot Hacks Applied . | . . . Relay Couplers Released . | . . . Fabnet Peak Effective % . | . . . Robots Rewired . | . . . Allies Hacked . | . . . Hacks Repelled . | . . . Allies | -11 -10 -9 -------- Run | Yrd Mat Mat Total Allies . | . . . Largest Group . | . . . Highest-Rated Group . | . . . Highest-Rated Ally . | . . . Total Orders . | . . . Ally Attacks . | . . . Total Damage . | . . . Kills . | . . . Allies Corrupted . | . . . Allies Melted . | . . . Intel | -11 -10 -9 ------- Run | Yrd Mat Mat Robot Analysis Total 1 | . 1 . Derelict Logs Recovered . | . . . Drone Launches . | . . . Drone Recoveries . | . . . Exploration | -11 -10 -9 ------------- Run | Yrd Mat Mat Turns Passed 1868 | 123 1743 2 Spaces Moved 1105 | 92 1012 1 Core 3 | 3 . . Treads . | . . . Legs 1102 | 89 1012 1 Wheels . | . . . Hover . | . . . Flight . | . . . Fastest Speed 50 | 50 120 120 Average Speed 119 | 117 120 120 Slowest Speed 120 | 120 120 120 Overloaded Moves . | . . . Propulsion Burnouts . | . . . Robots Hopped . | . . . Cave-ins Triggered . | . . . Exploration Rate (%) 33 | 4 94 1 Regions Visited 2 Branch Regions . Pre-discovered Areas . | . . . Known Exits Taken . | . . . Unknown Exits Taken 2 | 1 1 . Scrap Searched . | . . . Spaces Dug . | . . . Terrain Destroyed . | . . . Melee . | . . . Projectile . | . . . AOE . | . . . Terrain Rammed . | . . . Walls Destroyed . | . . . Machines Disabled . | . . . Actions | -11 -10 -9 --------- Run | Yrd Mat Mat Total 1556 | 103 1452 1 Wait 380 | 4 376 . Move 1103 | 91 1011 1 Hop . | . . . Pick Up 1 | 1 . . Fast Attach 11 | 6 5 . Attach . | . . . Detach . | . . . Swap 6 | 1 5 . Drop 7 | . 7 . Fire 47 | . 47 . Melee . | . . . Ram . | . . . Kick 1 | . 1 . Crush . | . . . Escape Stasis . | . . . Rewire . | . . . Trap . | . . . Miscellaneous . | . . . Route ------- -11/Scrapyard -10/Materials (discovered 5 exits: [*Mat x3] / [*Min x2]) -9/Materials History --------- Turn | Location | Event 1 | -11/Scrapyard | Upgraded with Propulsion slot (x1) 6 | -11/Scrapyard | Discovered new exit (range 16) 37 | -11/Scrapyard | Upgraded with Power slot (x1) 96 | -11/Scrapyard | Upgraded with Weapon slot (x1) 124 | -11/Scrapyard | Entered Materials 303 | -10/Materials | Build established: Mutant 355 | -10/Materials | Core integrity fell below 50% 429 | -10/Materials | Discovered new exit (range 16) 715 | -10/Materials | Discovered new exit (range 18) 1117 | -10/Materials | Discovered new exit (range 17) 1216 | -10/Materials | Discovered new exit (range 18) 1280 | -10/Materials | Discovered new exit (range 14) 1622 | -10/Materials | Reached level 2 1628 | -10/Materials | Upgraded with Utility slot (x1) 1867 | -10/Materials | Entered another Materials area 1868 | -9/Materials | Core integrity fell below 50% 1869 | -9/Materials | Reached level 3 1869 | -9/Materials | Self-destructed Last Messages --------------- 01359_ K-01 Serf cleans the Terminal. 01362_ K-01 Serf destroyed. 01365_ Acquired 7 matter. 01410_ System corrupted: Matter fused (-8). 01456_ System corrupted: Component data lost. 01540_ Acquired 2 matter. 01589_ O-16 Technician: "IFF HANDSHAKE FAILED. SECURING TERMINAL." 01600_ ALERT: Hostiles spotted, dispatching reinforcements to Terminal M003. 01622_ Reached level 2. 01628_ Upgraded: Utility Slot (+1) 01642_ Acquired Terrain Scanner. 01718_ 5PA0YWO#DTRQ:F0HM#O>5X2EC SZ&5> 01776_ System corrupted: Matter fused (-10). 01857_ G-34 Mercenary destroyed. 01857_ K-01 Serf collects debris. LOCATION=UNKNOWN GOAL=ESCAPE 01869_ Reached level 3. Map ----- +----------------------------------------------------+ | | | | | | | | | | | | | | | | | | | | | | | | | | | | | | | | | | | | | ?????????????????????????????????#????????????? | | ??????????????????????????????????????????????? | | ??????????????????????????????????????????????? | | ???????????????#??????????????????????????????? | | ?????????#????????????????????????????????????? | | ???????????????????################???????????? | | ???????????????????# #???????????? | | ???????????????????# @ #???????????? | | ???????????????????# ??????? | | ???????????????????#############+####?????????? | | ?????????????????????#????????????????????????? | | ??????????????????????????????? ??????????????? | | ????????????????#?????????????????????????????? | | ??????????????????????????????????????????????? | | ??????????????????????????????????????????????? | | ??????????????????????????????????????????????? | | ??????????????????????????????????????????????? | | ?????????????????????????#????????????????????? | | ????????????????????#?????????#???????????????? | | ??????????????????????????????????????????????? | | ??????????????????????????????????????????????? | | ??????????????????????????????????????????????? | | ??????????????????????????????????????????????? | | ??????????????????????????????????????????????? | | ??????????????????????????????????????????????? | | ??????????????????????????????????????????????? | | ??????????????????????????????????????????????? | | ??????????????????????????????????????????????? | | ??????????????????????????????????????????????? | | ??????????????????????????????????????????????? | | ??????????????????????????????????????????????? | | ??????????????????????????????????????????????? | +----------------------------------------------------+ Best States ------------- Heat Dissipation 47 Energy Generation 15 Energy Capacity 400 Matter Stores 300 Matter Capacity 300 Sight Range 18 Robot Scan Range 4 Terrain Scan Range 14 Terrain Scan Density 110 ECM Strength 1 Evasion (%) 55 Targeting Accuracy 5 Item Schematics ----------------- None Robot Schematics ------------------ None Fabricated ------------ Nothing Alien Tech Used ----------------- None Achievements -------------- None Challenges ------------ None RPGLIKE | -11 -10 -9 --------- Run | Yrd Mat Mat Levels Raised 2 | . 1 1 XP Earned 6170 | 3000 1670 1500 XP Spent 3425 | 1750 1675 . Upgrades 20 | 4 16 . Power Slot 1 | 1 . . Propulsion Slot 1 | 1 . . Utility Slot 1 | . 1 . Weapon Slot 1 | 1 . . Core Integrity 8 | . 8 . Heat Dissipation 2 | . 2 . Inventory Capacity 1 | 1 . . Sight Range 2 | . 2 . Sensor Range 2 | . 2 . Terrain Scan Density 1 | . 1 . Protomatter Created 167 | . 167 . Protomatter Decayed 167 | . 167 . Game ------ Seed ReactionVampiricChainsword Manual? 0 Play Time 00:32:04 Cumulative 17.4 hours Start 2025.01.02 @ 10:58:19 End 2025.01.02 @ 13:18:15 Sessions 10 Manual Loads 0 Difficulty Rogue Special Mode Winter2019/RPGLIKE Game No. 15 Rogue 6 Adventurer 4 Explorer 5 Win Type - Total 0 Types 0/0/0/0/0/0/0/0/0 Lore% 10 Gallery% 19 Achievement% 17 Wizard Run 0 Options --------- Layout 2 ASCII 0 Keyboard 0 Movement Mouse Keybinds 1 Fullscreen 1 Font 20/Terminus Map View 50x44 Zoom Use 0% Tactical HUD 1 Map Filters NONE Filters NONE Steam 1 RUN: 177a0df8-5bfe-4cfb-9033-aa3db2d7d09f